fUST/lending_fUST_20250623
["ID","MTS","AMOUNT","RATE_DAILY","PERIOD"]
[367165096,1750682028624,-360.0,0.00020164,2]
[367165097,1750682028974,150.0,0.00021572,30]
[367165098,1750682029493,150.0,0.00023533,30]
[367165099,1750682096170,-3630.0,0.00019962,2]
[367165100,1750682104403,150.0,0.00021575,30]
[367165101,1750682179993,150.0,0.00021881,30]
[367165102,1750682180403,150.0,0.0002387,30]
[367165105,1750682254233,150.0,0.00021647,30]
[367165107,1750682254718,150.0,0.00023615,30]
[367165108,1750682328189,150.0,0.00021645,30]
[367165111,1750682400258,150.0,0.00021647,30]
[367165116,1750682482961,-519.32348947,0.00019762,2]
[367165117,1750682482982,-140.0,0.00020164,2]
[367165118,1750682483003,-22.9870942,0.00021259,2]
[367165119,1750682483024,-151.0,0.00021312,5]
[367165120,1750682483046,-154.68941633,0.00021312,5]
[367165121,1750682551089,500.0,0.00019068,2]
[367165122,1750682678290,-17351.0,0.00020901,2]
[367165123,1750682826144,-185.52672,0.00020782,2]
[367165124,1750682826166,-300.0,0.00020868,2]
[367165125,1750682826447,-300.0,0.00020868,2]
[367165126,1750682826467,-11591.5784546,0.00020869,2]
[367165127,1750682826491,-450.90711245,0.000209,2]
[367165128,1750682826517,-500.0,0.000209,2]
[367165129,1750682826540,-238.86648977,0.000209,2]
[367165130,1750682843137,-356.78757395,0.000209,2]
[367165131,1750682843162,-227.8583151,0.000209,2]
[367165161,1750683031913,-2567.77301828,0.00020691,2]
[367165162,1750683031922,-300.0,0.000209,2]
[367165163,1750683031931,-1200.0,0.000209,2]
[367165164,1750683031941,-7549.0,0.00020901,2]
[367165165,1750683031951,-500.0,0.0002126,2]
[367165166,1750683031960,-173.51813985,0.00021817,2]
[367165167,1750683031970,-330.81487515,0.00021825,2]
[367165168,1750683031979,-207.4,0.00021887,2]
[367165169,1750683031989,-178.5310651,0.00021889,2]
[367165170,1750683031998,-500.0,0.00021889,2]
[367165172,1750683032008,-541.55185222,0.00021889,2]
[367165174,1750683032017,-171.85124347,0.00021889,2]
[367165175,1750683032026,-431.82003953,0.00021889,2]
[367165176,1750683032035,-500.0,0.00021889,2]
[367165177,1750683032045,-500.0,0.00021889,2]
[367165178,1750683032054,-500.0,0.00021889,2]
[367165180,1750683032063,-500.0,0.00021889,2]
[367165181,1750683032072,-198.02623218,0.00021889,2]
[367165182,1750683032081,-500.0,0.00021889,2]
[367165183,1750683032091,-500.0,0.00021889,2]
[367165184,1750683032100,-491.2,0.0002189,3]
[367165185,1750683032109,-568.93,0.0002189,10]
[367165186,1750683032119,-888.29,0.0002189,10]
[367165187,1750683032128,-500.0,0.00021899,2]
[367165188,1750683032137,-454.71920486,0.00021899,2]
[367165189,1750683032147,-500.0,0.00021899,2]
[367165190,1750683032157,-500.0,0.00021899,2]
[367165191,1750683032166,-500.0,0.00021899,2]
[367165192,1750683032175,-500.0,0.00021899,2]
[367165193,1750683032184,-465.17043722,0.00021899,2]
[367165194,1750683032193,-500.0,0.00021899,2]
[367165195,1750683032203,-500.0,0.00021899,2]
[367165196,1750683032212,-500.0,0.00021899,2]
[367165197,1750683032222,-500.0,0.00021899,2]
[367165198,1750683032231,-500.0,0.00021899,2]
[367165199,1750683032241,-500.0,0.00021899,2]
[367165200,1750683032250,-500.0,0.00021899,2]
[367165201,1750683032259,-500.0,0.00021899,2]
[367165203,1750683032268,-500.0,0.00021899,2]
[367165205,1750683032277,-500.0,0.00021899,2]
[367165207,1750683032287,-500.0,0.00021899,2]
[367165209,1750683032296,-175.10529257,0.00021899,2]
[367165211,1750683032305,-500.0,0.00021899,2]
[367165213,1750683032314,-500.0,0.00021899,2]
[367165215,1750683032324,-500.0,0.00021899,2]
[367165217,1750683032334,-500.0,0.00021899,2]
[367165218,1750683032343,-168.3034434,0.00021899,2]
[367165219,1750683032352,-195.0,0.00021899,2]
[367165220,1750683032361,-5000.0,0.000219,9]
[367165221,1750683032371,-200000.0,0.000219,2]
[367165222,1750683032380,-500.0,0.00021916,7]
[367165223,1750683032391,-175.12,0.00021916,2]
[367165224,1750683032401,-460.0,0.00021917,2]
[367165225,1750683032410,-460.0,0.00021917,2]
[367165226,1750683032419,-460.0,0.00021917,2]
[367165227,1750683032429,-2385.6764149,0.00021917,2]
[367165228,1750683032438,-460.0,0.00021917,2]
[367165229,1750683032448,-460.0,0.00021917,2]
[367165230,1750683032457,-524.01,0.00021917,2]
[367165231,1750683032467,-524.01,0.00021917,2]
[367165232,1750683032476,-460.0,0.00021917,2]
[367165233,1750683032486,-460.0,0.00021917,2]
[367165234,1750683032495,-156.02636217,0.00021917,2]
[367165235,1750683032505,-460.0,0.00021917,2]
[367165236,1750683032514,-460.0,0.00021917,2]
[367165237,1750683032523,-460.0,0.00021917,2]
[367165238,1750683032533,-460.0,0.00021917,2]
[367165239,1750683032548,-460.0,0.00021917,2]
[367165240,1750683032557,-460.0,0.00021917,2]
[367165241,1750683032568,-460.0,0.00021917,2]
[367165242,1750683032578,-460.0,0.00021917,2]
[367165243,1750683032590,-169.28817382,0.00021917,2]
[367165244,1750683032599,-244.49729915,0.00021917,2]
[367165245,1750683032609,-460.0,0.00021917,2]
[367165246,1750683032618,-460.0,0.00021917,2]
[367165247,1750683032628,-460.0,0.00021917,2]
[367165248,1750683032637,-460.0,0.00021917,2]
[367165249,1750683032647,-460.0,0.00021917,2]
[367165250,1750683032657,-460.0,0.00021917,2]
[367165251,1750683032666,-287.46108804,0.00021917,2]
[367165252,1750683032676,-536.06,0.00021917,2]
[367165253,1750683032686,-460.0,0.00021917,2]
[367165254,1750683032695,-460.0,0.00021917,2]
[367165255,1750683032704,-460.0,0.00021917,2]
[367165256,1750683032714,-460.0,0.00021917,2]
[367165257,1750683032723,-460.0,0.00021917,2]
[367165258,1750683032732,-460.0,0.00021917,2]
[367165259,1750683032742,-460.0,0.00021917,2]
[367165260,1750683032751,-756.44,0.00021917,2]
[367165261,1750683032761,-460.0,0.00021917,2]
[367165262,1750683032770,-460.0,0.00021917,2]
[367165263,1750683032779,-460.0,0.00021917,2]
[367165264,1750683032788,-460.0,0.00021917,2]
[367165265,1750683032797,-560.06,0.00021917,2]
[367165266,1750683032807,-490.15,0.00021917,2]
[367165267,1750683032816,-460.0,0.00021917,2]
[367165268,1750683032824,-460.0,0.00021917,2]
[367165269,1750683032834,-1238.64,0.00021917,2]
[367165270,1750683032843,-460.0,0.00021917,2]
[367165271,1750683032853,-460.0,0.00021917,2]
[367165272,1750683032862,-460.0,0.00021917,2]
[367165273,1750683032871,-767.7,0.00021917,2]
[367165274,1750683032881,-460.0,0.00021917,2]
[367165275,1750683032891,-555.81,0.00021917,2]
[367165276,1750683032901,-460.0,0.00021917,2]
[367165277,1750683032911,-460.0,0.00021917,2]
[367165278,1750683032921,-460.0,0.00021917,2]
[367165279,1750683032931,-460.0,0.00021917,2]
[367165280,1750683032940,-460.0,0.00021917,2]
[367165281,1750683032950,-460.0,0.00021917,2]
[367165282,1750683032960,-460.0,0.00021917,2]
[367165283,1750683032969,-460.0,0.00021917,2]
[367165284,1750683032980,-460.0,0.00021917,2]
[367165285,1750683032991,-460.0,0.00021917,2]
[367165286,1750683033001,-460.0,0.00021917,2]
[367165287,1750683033011,-584.74,0.00021917,2]
[367165288,1750683033020,-460.0,0.00021917,2]
[367165289,1750683033030,-460.0,0.00021917,2]
[367165290,1750683033039,-645.48,0.00021917,2]
[367165291,1750683033049,-460.0,0.00021917,2]
[367165292,1750683033059,-460.0,0.00021917,2]
[367165293,1750683033069,-460.0,0.00021917,2]
[367165294,1750683033078,-460.0,0.00021917,2]
[367165295,1750683033088,-460.0,0.00021917,2]
[367165296,1750683033098,-406.43770879,0.00021917,2]
[367165297,1750683033108,-460.0,0.00021917,2]
[367165298,1750683033118,-460.0,0.00021917,2]
[367165299,1750683033128,-460.0,0.00021917,2]
[367165300,1750683033138,-460.0,0.00021917,2]
[367165301,1750683033148,-460.0,0.00021917,2]
[367165302,1750683033158,-460.0,0.00021917,2]
[367165303,1750683033168,-460.0,0.00021917,2]
[367165304,1750683033178,-373.56540376,0.00021917,2]
[367165305,1750683033188,-261.49447496,0.00021917,2]
[367165306,1750683033197,-460.0,0.00021917,2]
[367165307,1750683033207,-460.0,0.00021917,2]
[367165308,1750683033217,-460.0,0.00021917,2]
[367165309,1750683033227,-1103.26,0.00021917,2]
[367165310,1750683033236,-460.0,0.00021917,2]
[367165311,1750683033245,-460.0,0.00021917,2]
[367165312,1750683033255,-460.0,0.00021917,2]
[367165313,1750683033265,-460.0,0.00021917,2]
[367165314,1750683033275,-460.0,0.00021917,2]
[367165315,1750683033284,-594.72,0.00021917,2]
[367165316,1750683033293,-460.0,0.00021917,2]
[367165317,1750683033303,-460.0,0.00021917,2]
[367165318,1750683033312,-460.0,0.00021917,2]
[367165319,1750683033322,-858.06,0.00021917,2]
[367165320,1750683033332,-460.0,0.00021917,2]
[367165321,1750683033342,-460.0,0.00021917,2]
[367165322,1750683033352,-460.0,0.00021917,2]
[367165323,1750683033361,-500.0,0.00021917,2]
[367165324,1750683033371,-546.47,0.00021917,2]
[367165325,1750683033381,-559.81,0.00021917,2]
[367165326,1750683033391,-1047.59,0.00021917,2]
[367165327,1750683033401,-2190.18,0.00021917,2]
[367165328,1750683033411,-460.0,0.00021917,2]
[367165329,1750683033421,-460.0,0.00021917,2]
[367165330,1750683033430,-603.25,0.00021917,2]
[367165331,1750683033441,-1493.57,0.00021917,2]
[367165332,1750683033450,-760.62,0.00021917,2]
[367165333,1750683033460,-1010.0,0.00021917,2]
[367165334,1750683033469,-805.59,0.00021917,2]
[367165335,1750683033479,-493.6,0.00021917,2]
[367165336,1750683033488,-460.0,0.00021917,2]
[367165337,1750683033497,-783.76,0.00021917,2]
[367165338,1750683033506,-460.0,0.00021917,2]
[367165339,1750683033516,-1184.51,0.00021917,2]
[367165340,1750683033526,-460.0,0.00021917,2]
[367165341,1750683033535,-460.0,0.00021917,2]
[367165342,1750683033548,-689.58,0.00021917,2]
[367165343,1750683033558,-460.0,0.00021917,2]
[367165344,1750683033567,-460.0,0.00021917,2]
[367165345,1750683033578,-460.0,0.00021917,2]
[367165346,1750683033590,-551.13,0.00021917,2]
[367165347,1750683033605,-460.0,0.00021917,2]
[367165348,1750683033615,-787.35,0.00021917,2]
[367165349,1750683033625,-460.0,0.00021917,2]
[367165350,1750683033634,-460.0,0.00021917,2]
[367165351,1750683033644,-584.185351,0.00021917,2]
[367165352,1750683033654,-460.0,0.00021917,2]
[367165353,1750683033663,-460.0,0.00021917,2]
[367165354,1750683033673,-462.33201513,0.00021917,2]
[367165355,1750683033683,-892.84,0.00021917,2]
[367165356,1750683033692,-460.0,0.00021917,2]
[367165357,1750683033702,-501.67,0.00021917,2]
[367165358,1750683033712,-460.0,0.00021917,2]
[367165359,1750683033721,-460.0,0.00021917,2]
[367165360,1750683033731,-460.0,0.00021917,2]
[367165361,1750683033740,-551.34,0.00021917,2]
[367165362,1750683033750,-480.31,0.00021917,2]
[367165363,1750683033759,-498.01,0.00021917,2]
[367165364,1750683033769,-460.0,0.00021917,2]
[367165365,1750683033779,-460.0,0.00021917,2]
[367165366,1750683033789,-460.0,0.00021917,2]
[367165367,1750683033799,-460.0,0.00021917,2]
[367165368,1750683033808,-460.0,0.00021917,2]
[367165369,1750683033818,-2607.32,0.00021917,2]
[367165370,1750683033827,-460.0,0.00021917,2]
[367165371,1750683033837,-460.0,0.00021917,2]
[367165372,1750683033847,-1026.79,0.00021917,2]
[367165373,1750683033857,-460.0,0.00021917,2]
[367165374,1750683033866,-460.0,0.00021917,2]
[367165375,1750683033876,-460.0,0.00021917,2]
[367165376,1750683033886,-460.0,0.00021917,2]
[367165377,1750683033896,-2178.1,0.00021917,2]
[367165378,1750683033906,-460.0,0.00021917,2]
[367165379,1750683033916,-836.0,0.00021917,2]
[367165380,1750683033926,-460.0,0.00021917,2]
[367165381,1750683033935,-460.0,0.00021917,2]
[367165382,1750683033944,-460.0,0.00021917,2]
[367165383,1750683033954,-520.71,0.00021917,2]
[367165384,1750683033964,-499.2,0.00021917,2]
[367165385,1750683033974,-460.0,0.00021917,2]
[367165386,1750683033983,-460.0,0.00021917,2]
[367165387,1750683033993,-460.0,0.00021917,2]
[367165388,1750683034003,-460.0,0.00021917,2]
[367165389,1750683034012,-460.0,0.00021917,2]
[367165390,1750683034021,-460.0,0.00021917,2]
[367165391,1750683034031,-591.49,0.00021917,2]
[367165392,1750683034040,-960.86,0.00021917,2]
[367165393,1750683034049,-460.0,0.00021917,2]
[367165394,1750683034059,-460.0,0.00021917,2]
[367165395,1750683034068,-460.0,0.00021917,2]
[367165396,1750683034078,-460.0,0.00021917,2]
[367165397,1750683034088,-534.3414925,0.00021917,2]
[367165398,1750683034098,-460.0,0.00021917,2]
[367165399,1750683034107,-460.0,0.00021917,2]
[367165400,1750683034117,-670.59,0.00021917,2]
[367165401,1750683034127,-673.8,0.00021917,2]
[367165402,1750683034137,-460.0,0.00021917,2]
[367165403,1750683034147,-460.0,0.00021917,2]
[367165404,1750683034157,-529.72,0.00021917,2]
[367165405,1750683034167,-460.0,0.00021917,2]
[367165406,1750683034176,-460.0,0.00021917,2]
[367165407,1750683034186,-525.83812437,0.00021917,2]
[367165408,1750683034196,-460.0,0.00021917,2]
[367165409,1750683034205,-460.0,0.00021917,2]
[367165410,1750683034215,-460.0,0.00021917,2]
[367165411,1750683034225,-856.42,0.00021917,2]
[367165412,1750683034234,-460.0,0.00021917,2]
[367165413,1750683034244,-460.0,0.00021917,2]
[367165414,1750683034253,-904.17,0.00021917,2]
[367165415,1750683034263,-460.0,0.00021917,2]
[367165416,1750683034272,-460.0,0.00021917,2]
[367165417,1750683034282,-460.0,0.00021917,2]
[367165418,1750683034291,-5226.3,0.00021917,2]
[367165419,1750683034301,-460.0,0.00021917,2]
[367165420,1750683034310,-434.9582694,0.00021917,2]
[367165421,1750683034320,-460.0,0.00021917,2]
[367165422,1750683034329,-617.26,0.00021917,2]
[367165423,1750683034339,-677.4,0.00021917,2]
[367165424,1750683034348,-614.07,0.00021917,2]
[367165425,1750683034358,-460.0,0.00021917,2]
[367165426,1750683034367,-460.0,0.00021917,2]
[367165427,1750683034377,-460.0,0.00021917,2]
[367165428,1750683034386,-500.0,0.00021917,2]
[367165429,1750683034396,-547.95,0.00021917,2]
[367165430,1750683034406,-4916.86,0.00021917,2]
[367165431,1750683034415,-559.61120758,0.00021917,2]
[367165432,1750683034425,-460.0,0.00021917,2]
[367165433,1750683034435,-1406.83,0.00021917,2]
[367165434,1750683034444,-460.0,0.00021917,2]
[367165435,1750683034454,-460.0,0.00021917,2]
[367165436,1750683034463,-460.0,0.00021917,2]
[367165437,1750683034473,-542.8,0.00021917,2]
[367165438,1750683034482,-460.0,0.00021917,2]
[367165439,1750683034492,-511.54,0.00021917,2]
[367165440,1750683034502,-460.0,0.00021917,2]
[367165441,1750683034512,-543.73,0.00021917,2]
[367165442,1750683034521,-460.0,0.00021917,2]
[367165443,1750683034530,-757.29,0.00021917,2]
[367165444,1750683034541,-460.0,0.00021917,2]
[367165445,1750683034553,-460.0,0.00021917,2]
[367165446,1750683034563,-774.52,0.00021917,2]
[367165447,1750683034573,-460.0,0.00021917,2]
[367165448,1750683034583,-460.0,0.00021917,2]
[367165449,1750683034594,-460.0,0.00021917,2]
[367165450,1750683034604,-460.0,0.00021917,2]
[367165451,1750683034614,-464.31219382,0.00021917,2]
[367165452,1750683034626,-460.0,0.00021917,2]
[367165453,1750683034636,-460.0,0.00021917,2]
[367165454,1750683034646,-4329.58,0.00021917,2]
[367165455,1750683034655,-902.64,0.00021917,2]
[367165456,1750683034666,-460.0,0.00021917,2]
[367165457,1750683034675,-460.0,0.00021917,2]
[367165458,1750683034686,-3214.67,0.00021917,2]
[367165459,1750683034696,-460.0,0.00021917,2]
[367165460,1750683034705,-1156.55,0.00021917,2]
[367165461,1750683034715,-732.28,0.00021917,2]
[367165462,1750683034725,-453.17029561,0.00021917,2]
[367165463,1750683034734,-2171.57,0.00021917,2]
[367165464,1750683034745,-536.84,0.00021917,2]
[367165465,1750683034754,-460.0,0.00021917,2]
[367165466,1750683034764,-5083.23,0.00021917,2]
[367165467,1750683034774,-1512.08,0.00021917,2]
[367165468,1750683034783,-820.05,0.00021917,2]
[367165469,1750683034793,-1419.64,0.00021917,2]
[367165470,1750683034803,-460.0,0.00021917,2]
[367165471,1750683034812,-357.0430527,0.00021917,2]
[367165472,1750683034821,-920.03,0.00021917,2]
[367165473,1750683034831,-460.0,0.00021917,2]
[367165474,1750683034840,-460.0,0.00021917,2]
[367165475,1750683034850,-460.0,0.00021917,2]
[367165476,1750683034860,-460.0,0.00021917,2]
[367165477,1750683034870,-460.0,0.00021917,2]
[367165478,1750683034879,-460.0,0.00021917,2]
[367165479,1750683034888,-774.13,0.00021917,2]
[367165480,1750683034898,-833.0,0.00021917,2]
[367165481,1750683034907,-460.0,0.00021917,2]
[367165482,1750683034917,-1084.44,0.00021917,2]
[367165483,1750683034926,-460.0,0.00021917,2]
[367165484,1750683034936,-460.0,0.00021917,2]
[367165485,1750683034945,-1593.04,0.00021917,2]
[367165486,1750683034955,-460.0,0.00021917,2]
[367165487,1750683034964,-460.0,0.00021917,2]
[367165488,1750683034973,-460.0,0.00021917,2]
[367165489,1750683034983,-767.08,0.00021917,2]
[367165490,1750683034993,-460.0,0.00021917,2]
[367165491,1750683035002,-823.68,0.00021917,2]
[367165492,1750683035012,-460.0,0.00021917,2]
[367165493,1750683035021,-1270.29,0.00021917,2]
[367165494,1750683035031,-460.0,0.00021917,2]
[367165495,1750683035040,-460.0,0.00021917,2]
[367165496,1750683035049,-509.16,0.00021917,2]
[367165497,1750683035059,-605.15,0.00021917,2]
[367165498,1750683035068,-256.58896146,0.00021917,2]
[367165499,1750683035078,-304.03066694,0.00021917,2]
[367165500,1750683035087,-460.0,0.00021917,2]
[367165501,1750683035097,-460.0,0.00021917,2]
[367165502,1750683035106,-460.0,0.00021917,2]
[367165503,1750683035116,-460.0,0.00021917,2]
[367165504,1750683035126,-531.14580334,0.00021917,2]
[367165505,1750683035135,-460.0,0.00021917,2]
[367165506,1750683035144,-460.0,0.00021917,2]
[367165507,1750683035154,-460.0,0.00021917,2]
[367165508,1750683035163,-460.0,0.00021917,2]
[367165509,1750683035173,-460.0,0.00021917,2]
[367165510,1750683035182,-460.0,0.00021917,2]
[367165511,1750683035191,-555.97,0.00021917,2]
[367165512,1750683035201,-521.14,0.00021917,2]
[367165513,1750683035211,-2199.3,0.00021917,2]
[367165514,1750683035221,-627.13,0.00021917,2]
[367165515,1750683035231,-833.49,0.00021917,2]
[367165516,1750683035241,-460.0,0.00021917,2]
[367165517,1750683035251,-228.3356228,0.00021917,2]
[367165518,1750683035261,-460.0,0.00021917,2]
[367165519,1750683035270,-638.9,0.00021917,2]
[367165520,1750683035280,-460.0,0.00021917,2]
[367165521,1750683035290,-744.97,0.00021917,2]
[367165522,1750683035480,-460.0,0.00021917,2]
[367165523,1750683035490,-460.0,0.00021917,2]
[367165524,1750683035499,-3531.69,0.00021917,2]
[367165525,1750683035509,-460.0,0.00021917,2]
[367165526,1750683035518,-460.0,0.00021917,2]
[367165527,1750683035527,-460.0,0.00021917,2]
[367165528,1750683035537,-2655.86,0.00021917,2]
[367165529,1750683035549,-460.0,0.00021917,2]
[367165530,1750683035558,-460.0,0.00021917,2]
[367165531,1750683035568,-460.0,0.00021917,2]
[367165532,1750683035578,-1097.17,0.00021917,2]
[367165533,1750683035587,-467.34,0.00021917,2]
[367165534,1750683035597,-460.0,0.00021917,2]
[367165535,1750683035607,-460.0,0.00021917,2]
[367165536,1750683035617,-546.61,0.00021917,2]
[367165537,1750683035626,-1137.24,0.00021917,2]
[367165538,1750683035636,-460.0,0.00021917,2]
[367165539,1750683035646,-460.0,0.00021917,2]
[367165540,1750683035655,-460.0,0.00021917,2]
[367165541,1750683035668,-666.76,0.00021917,2]
[367165542,1750683035678,-460.0,0.00021917,2]
[367165543,1750683035688,-1529.38,0.00021917,2]
[367165544,1750683035698,-600.99,0.00021917,2]
[367165545,1750683035708,-460.0,0.00021917,2]
[367165546,1750683035718,-460.0,0.00021917,2]
[367165547,1750683035728,-500.0,0.00021917,2]
[367165548,1750683035738,-1020.3,0.00021917,2]
[367165549,1750683035748,-962.54,0.00021917,2]
[367165550,1750683035759,-460.0,0.00021917,2]
[367165551,1750683035769,-460.0,0.00021917,2]
[367165552,1750683035780,-1090.55,0.00021917,2]
[367165553,1750683035790,-561.37,0.00021917,2]
[367165554,1750683035800,-460.0,0.00021917,2]
[367165555,1750683035810,-1727.1,0.00021917,2]
[367165556,1750683035820,-1944.53,0.00021917,2]
[367165557,1750683035830,-1410.64,0.00021917,2]
[367165558,1750683035840,-460.0,0.00021917,2]
[367165559,1750683035850,-13376.11,0.00021917,2]
[367165560,1750683035860,-5788.72,0.00021917,2]
[367165561,1750683035870,-1511.33,0.00021917,2]
[367165562,1750683035879,-842.55,0.00021917,2]
[367165563,1750683035896,-460.0,0.00021917,2]
[367165564,1750683035906,-460.0,0.00021917,2]
[367165565,1750683035916,-702.32,0.00021917,2]
[367165566,1750683035926,-3337.48,0.00021917,2]
[367165567,1750683035935,-2007.11,0.00021917,2]
[367165568,1750683035945,-460.0,0.00021917,2]
[367165569,1750683035954,-460.0,0.00021917,2]
[367165570,1750683035963,-460.0,0.00021917,2]
[367165571,1750683035973,-460.0,0.00021917,2]
[367165572,1750683035983,-561.35,0.00021917,2]
[367165573,1750683035992,-460.0,0.00021917,2]
[367165574,1750683036002,-460.0,0.00021917,2]
[367165575,1750683036013,-461.01,0.00021917,2]
[367165576,1750683036024,-501.16,0.00021917,2]
[367165577,1750683036035,-937.21,0.00021917,2]
[367165578,1750683036046,-649.05,0.00021917,2]
[367165579,1750683036057,-460.0,0.00021917,2]
[367165580,1750683036068,-1371.95,0.00021917,2]
[367165581,1750683036077,-569.41,0.00021917,2]
[367165582,1750683036087,-1779.12,0.00021917,2]
[367165583,1750683036097,-601.06562537,0.00021917,2]
[367165584,1750683036106,-460.0,0.00021917,2]
[367165585,1750683036115,-464.66,0.00021917,2]
[367165586,1750683036125,-460.0,0.00021917,2]
[367165587,1750683036136,-605.03,0.00021917,2]
[367165588,1750683036149,-861.22,0.00021917,2]
[367165589,1750683036159,-1705.44,0.00021917,2]
[367165590,1750683036169,-479.48,0.00021917,2]
[367165591,1750683036179,-3570.09,0.00021917,2]
[367165592,1750683036189,-460.0,0.00021917,2]
[367165593,1750683036198,-953.0,0.00021917,2]
[367165594,1750683036208,-5249.07,0.00021917,2]
[367165595,1750683036217,-460.0,0.00021917,2]
[367165596,1750683036227,-1060.23,0.00021917,2]
[367165597,1750683036236,-460.0,0.00021917,2]
[367165598,1750683036246,-857.28,0.00021917,2]
[367165599,1750683036256,-460.0,0.00021917,2]
[367165600,1750683036266,-2148.62,0.00021917,2]
[367165601,1750683036275,-2219.82,0.00021917,2]
[367165602,1750683036285,-460.0,0.00021917,2]
[367165603,1750683036294,-4464.57,0.00021917,2]
[367165604,1750683036304,-460.0,0.00021917,2]
[367165605,1750683036314,-1133.49,0.00021917,2]
[367165606,1750683036323,-460.0,0.00021917,2]
[367165607,1750683036332,-530.21,0.00021917,2]
[367165608,1750683036342,-981.35,0.00021917,2]
[367165609,1750683036351,-460.0,0.00021917,2]
[367165610,1750683036361,-460.0,0.00021917,2]
[367165611,1750683036370,-460.0,0.00021917,2]
[367165612,1750683036380,-537.07,0.00021917,2]
[367165613,1750683036389,-500.0,0.00021917,2]
[367165614,1750683036399,-460.0,0.00021917,2]
[367165615,1750683036408,-7043.69,0.00021917,2]
[367165616,1750683036418,-179.6518917,0.00021917,2]
[367165617,1750683036427,-1445.75,0.00021917,2]
[367165618,1750683036437,-5056.89,0.00021917,2]
[367165619,1750683036446,-460.0,0.00021917,2]
[367165620,1750683036456,-569.01,0.00021917,2]
[367165621,1750683036465,-887.25,0.00021917,2]
[367165622,1750683036475,-460.0,0.00021917,2]
[367165623,1750683036485,-563.83,0.00021917,2]
[367165624,1750683036494,-773.97,0.00021917,2]
[367165625,1750683036503,-460.0,0.00021917,2]
[367165626,1750683036513,-460.0,0.00021917,2]
[367165627,1750683036522,-12553.69357174,0.00021979,2]
[367165628,1750683036532,-213.63163053,0.00021979,2]
[367165629,1750683036542,-160.0,0.00021979,2]
[367165630,1750683036553,-846.53928378,0.00021979,2]
[367165631,1750683036563,-160.0,0.00021979,2]
[367165632,1750683036572,-836.70095952,0.00021979,2]
[367165633,1750683036582,-230.18214666,0.00021979,2]
[367165634,1750683036593,-425.08510397,0.00021979,2]
[367165635,1750683036602,-160.0,0.00021979,2]
[367165636,1750683036612,-7178.0,0.00022,10]
[367165637,1750683036623,-524.09497732,0.00022,10]
[367165638,1750683036633,-173.51813985,0.00022112,2]
[367165639,1750683036643,-428.7,0.00022115,4]
[367165640,1750683036653,-257.04394934,0.00022125,2]
[367165641,1750683036663,-460.0,0.00022191,2]
[367165642,1750683036672,-460.0,0.00022191,2]
[367165643,1750683036682,-460.0,0.00022191,2]
[367165644,1750683036691,-524.01,0.00022191,2]